bitfinex/quotes_SOLUSD_20260224
["timestamp","ask_amount","ask_price","bid_price","bid_amount"]
[1771917002264,11.58969992,77.11,77.075,0.90596163]
[1771917002449,0.03149871,77.119,77.077,0.70596163]
[1771917003361,32.4082834,77.141,77.09,11.56117502]
[1771917003556,24.52797999,77.12,77.081,0.70596163]
[1771917003871,11.56117502,77.12,77.082,0.70596163]
[1771917004549,11.56117502,77.12,77.084,0.70596163]
[1771917005050,12.96697311,77.119,77.084,0.70596163]
[1771917005371,11.56117502,77.11,77.084,0.70596163]
[1771917005875,11.56117502,77.1,77.076,0.70596163]
[1771917006051,0.04021673,77.109,77.076,13.6801689]
[1771917006554,24.53144582,77.1,77.067,12.97561661]
[1771917006759,11.60423126,77.11,77.077,0.70596163]
[1771917007061,12.96863515,77.11,77.077,0.70596163]
[1771917007261,15.03458665,77.121,77.091,0.70596163]
[1771917007458,11.56117502,77.12,77.091,0.70596163]
[1771917007662,11.56117502,77.11,77.081,0.70596163]
[1771917008468,11.56117502,77.1,77.073,0.70596163]
[1771917008678,15.03458665,77.121,77.081,0.70596163]
[1771917008892,24.52797999,77.12,77.081,0.70596163]
[1771917009577,11.56117502,77.11,77.081,0.70596163]
[1771917010866,11.56117502,77.1,77.072,13.68083231]
[1771917011109,12.96865476,77.109,77.065,32.63985174]
[1771917011110,11.56117502,77.09,77.075,0.14590795]
[1771917011869,11.56117502,77.09,77.065,0.2]
[1771917012070,11.56117502,77.08,77.054,0.70596163]
[1771917012952,12.9737023,77.079,77.054,0.70596163]
[1771917013154,11.56117502,77.07,77.044,0.73300766]
[1771917013474,11.56902921,77.07,77.042,12.97991126]
[1771917014455,11.56902921,77.07,77.039,0.73300766]
[1771917014655,11.56902921,77.07,77.04,0.73300766]
[1771917015480,11.56902921,77.06,77.033,12.9814192]
[1771917015685,12.97538569,77.069,77.002,0.73300766]
[1771917015686,11.56902921,77.05,77.002,0.73300766]
[1771917015884,11.56902921,77.06,77.021,0.73300766]
[1771917016299,0.28432314,77.096,77.041,0.73300766]
[1771917016472,11.56902921,77.08,77.041,0.73300766]
[1771917016778,11.56902921,77.07,77.041,0.73300766]
[1771917017586,11.56902921,77.06,77.034,0.73300766]
[1771917017782,11.56902921,77.06,77.036,0.73300766]
[1771917017965,12.97538569,77.069,77.036,0.73300766]
[1771917018365,12.99846659,77.069,77.036,0.73300766]
[1771917019285,11.56902921,77.06,77.036,0.73300766]
[1771917019668,0.02954769,77.049,77.017,0.73558384]
[1771917020275,0.31387083,77.029,76.995,0.73558384]
[1771917020482,11.56902921,77.02,76.995,0.73558384]
[1771917021870,11.56902921,77.02,76.996,12.98768767]
[1771917022363,24.55276716,77.02,76.995,0.73558384]
[1771917022568,11.56902921,77.02,76.996,12.98768767]
[1771917023482,12.98238972,77.028,76.996,12.98768767]
[1771917023683,13.02746556,77.028,76.996,13.72069533]
[1771917023882,11.56902921,77.02,76.996,13.72069533]
[1771917024182,11.61410505,77.02,76.982,0.73300766]
[1771917024863,0.04807528,77.019,76.982,0.73300766]
[1771917025672,0.05104027,77.009,76.974,0.73300766]
[1771917025866,11.56902921,77.01,76.974,0.73300766]
[1771917026067,3.69383402,77.047,76.991,0.73300766]
[1771917026068,11.56902921,77.02,76.991,0.73300766]
[1771917026295,12.98380918,77.019,76.991,0.73300766]
[1771917026666,24.55275903,77.02,76.991,0.73300766]
[1771917027267,0.0539712,77.045,77.001,0.73300766]
[1771917027483,11.62300041,77.04,77.01,11.56902921]
[1771917027688,0.05686847,77.038,77.01,11.56902921]
[1771917028284,0.05686847,77.036,77.008,0.73300766]
[1771917028583,0.05686847,77.036,77.0,24.55590819]
[1771917028781,11.56902921,77.02,77.0,13.71988664]
[1771917028980,11.56902921,77.03,77.001,0.73300766]
[1771917029774,12.98212361,77.029,77.001,0.73300766]
[1771917030186,12.98212361,77.029,77.002,12.98667567]
[1771917030875,13.04748575,77.029,77.002,12.98667567]
[1771917032177,0.06812857,77.019,76.99,0.73300766]
[1771917032380,0.06812857,77.009,76.977,0.73300766]
[1771917032688,11.56902921,77.01,76.981,0.73300766]
[1771917032895,0.07086323,77.017,76.981,0.73300766]
[1771917033078,11.56902921,77.01,76.981,0.73300766]
[1771917034286,11.56902921,77.01,76.982,12.99004962]
[1771917034796,11.56902921,77.01,76.982,13.72305728]
[1771917034975,11.56902921,77.01,76.983,0.73300766]
[1771917035175,11.56902921,77.0,76.978,12.99067416]
[1771917037499,11.56902921,77.0,76.975,0.73300766]
[1771917037688,24.55611743,77.0,76.976,12.99106214]
[1771917037887,11.56902921,77.0,76.977,0.73300766]
[1771917038501,11.56902921,77.01,76.977,0.73300766]
[1771917038676,11.56902921,77.01,76.981,0.73300766]
[1771917039299,11.56902921,77.0,76.981,0.73300766]
[1771917039491,0.7189875,77.041,76.991,0.72732181]
[1771917039792,12.9800593,77.042,76.991,0.72732181]
[1771917039793,0.7189875,77.029,76.991,0.72732181]
[1771917040177,11.56902921,77.02,76.991,0.72732181]
[1771917041080,0.7189875,77.029,76.991,0.72732181]
[1771917041492,0.7189875,77.027,76.993,0.72732181]
[1771917041997,0.7189875,77.027,77.0,0.72732181]
[1771917042596,0.7189875,77.009,76.981,13.71754017]
[1771917043097,0.7189875,77.009,76.982,0.72732181]
[1771917043603,0.7189875,77.009,76.983,12.98988088]
[1771917043790,0.7189875,77.009,76.983,13.71720269]
[1771917044484,0.7189875,77.009,76.984,0.72732181]
[1771917046082,0.7189875,77.009,76.985,12.98954341]
[1771917047998,0.77582398,77.008,76.985,12.98954341]
[1771917049000,0.77582398,77.008,76.985,13.73894872]
[1771917050792,0.77582398,77.007,76.981,0.74940531]
[1771917050984,0.77582398,77.006,76.981,0.74940531]
[1771917052808,0.77582398,77.006,76.982,12.99004962]
[1771917053796,0.77582398,77.018,76.983,0.74940531]
[1771917056003,0.77582398,77.016,76.985,0.74940531]
[1771917058984,0.77582398,77.02,76.991,0.74940531]
[1771917060193,0.77582398,77.035,77.001,0.74940531]
[1771917060385,0.77582398,77.035,77.011,0.74940531]
[1771917061017,12.98128099,77.034,77.011,0.74940531]
[1771917061797,12.98128099,77.034,77.01,5.19088298]
[1771917061798,0.77582398,77.035,77.013,0.74940531]
[1771917062699,0.77582398,77.044,77.021,0.74940531]
[1771917063293,13.75542005,77.044,77.021,0.74940531]
[1771917063493,0.77582398,77.044,77.023,0.74940531]
[1771917065596,0.77582398,77.059,77.025,0.74940531]
[1771917065999,0.77582398,77.066,77.041,0.74940531]
[1771917068197,12.97605917,77.065,77.042,12.97993302]
[1771917068402,0.77582398,77.064,77.042,12.97993302]
[1771917069509,0.77582398,77.064,77.042,0.74940531]
[1771917070100,0.77582398,77.086,77.051,0.74940531]
[1771917070518,0.77582398,77.086,77.061,0.74940531]
[1771917071920,0.77582398,77.079,77.054,0.74940531]
[1771917073318,0.77582398,77.079,77.055,12.97774317]
[1771917074100,0.77582398,77.087,77.061,0.74940531]
[1771917074303,0.77582398,77.097,77.061,0.74940531]
[1771917075316,5.28104374,77.1,77.063,0.74940531]
[1771917075317,0.77582398,77.089,77.063,0.74940531]
[1771917075708,13.74666552,77.096,77.063,0.74940531]
[1771917075909,0.1,77.1,77.063,0.74940531]
[1771917076238,12.97033683,77.099,77.063,0.74940531]
[1771917076529,0.77582398,77.089,77.063,0.74940531]
[1771917079330,0.77582398,77.089,77.065,0.72953159]
[1771917081626,0.77582398,77.089,77.067,0.72953159]
[1771917083642,0.70733435,77.079,77.049,13.70186497]
[1771917083936,0.70733435,77.079,77.051,0.72311119]
[1771917084241,0.70733435,77.095,77.061,0.72311119]
[1771917085431,0.70733435,77.089,77.062,12.97656432]
[1771917085627,0.70733435,77.089,77.057,12.9772911]
[1771917085829,0.70733435,77.079,77.057,12.9772911]
[1771917086152,0.70733435,77.079,77.053,12.97801967]
[1771917088830,0.70733435,77.077,77.045,0.72311119]
[1771917089323,0.70733435,77.069,77.041,12.9801015]
[1771917089520,0.70733435,77.069,77.041,13.70321269]
[1771917089836,0.70733435,77.069,77.035,12.98111248]
[1771917090043,0.70733435,77.059,77.031,0.72311119]
[1771917090248,0.70733435,77.069,77.041,0.72311119]
[1771917090822,0.70733435,77.084,77.051,0.72311119]
[1771917092034,0.70733435,77.079,77.051,0.72311119]
[1771917093529,0.70733435,77.069,77.037,0.72311119]
[1771917094233,0.70733435,77.069,77.041,0.72311119]
[1771917096545,0.70733435,77.069,77.043,0.72311119]
[1771917097131,0.70733435,77.067,77.043,0.72311119]
[1771917100555,0.70733435,77.067,77.045,0.72311119]
[1771917100850,5.18104374,77.08,77.045,0.72311119]
[1771917100851,0.70733435,77.079,77.045,0.72311119]
[1771917103148,0.70733435,77.077,77.047,0.72311119]
[1771917105259,0.70733435,77.084,77.051,0.72311119]
[1771917105438,0.70733435,77.091,77.061,0.72311119]
[1771917106541,0.70733435,77.091,77.063,0.72311119]
[1771917106940,5.28104374,77.1,77.054,0.72311119]
[1771917106941,0.70733435,77.089,77.054,0.72311119]
[1771917107239,0.70733435,77.079,77.055,13.70085436]
[1771917107440,0.70733435,77.079,77.056,0.72311119]
[1771917108750,0.75115746,77.077,77.056,0.72311119]
[1771917108947,0.75115746,77.075,77.041,0.68259495]
[1771917109147,0.75115746,77.075,77.042,0.68259495]
[1771917109551,0.75115746,77.069,77.042,0.68259495]
[1771917110164,0.75115746,77.059,77.035,12.98102852]
[1771917110466,45.40854718,77.078,77.035,12.98102852]
[1771917110467,0.75115746,77.065,77.036,0.68259495]
[1771917110637,0.75115746,77.065,77.038,0.68259495]
[1771917115468,0.75115746,77.065,77.04,0.68259495]
[1771917117859,0.75115746,77.065,77.041,12.9801015]
[1771917118960,0.75115746,77.059,77.036,12.98091616]
[1771917119666,0.75115746,77.059,77.037,0.68259495]
[1771917119864,0.75115746,77.059,77.039,0.68259495]
[1771917120364,0.75115746,77.059,77.038,12.98060697]
[1771917120365,0.75115746,77.075,77.041,0.68259495]
[1771917120866,0.75115746,77.081,77.051,0.68259495]
[1771917122142,5.28104374,77.1,77.061,0.68259495]
[1771917122346,5.28104374,77.1,77.071,0.68259495]
[1771917122347,0.1,77.1,77.071,0.68259495]
[1771917122954,0.1,77.1,77.081,0.68259495]
[1771917124260,0.75115746,77.099,77.077,0.68259495]
[1771917124769,0.1,77.1,77.081,0.68259495]
[1771917127257,0.75115746,77.099,77.066,12.97589079]
[1771917127458,0.75115746,77.089,77.066,12.97589079]
[1771917128070,0.75115746,77.089,77.067,0.68259495]
[1771917130866,0.75115746,77.089,77.068,13.658149]
[1771917131074,0.75115746,77.089,77.069,0.68259495]
[1771917131949,0.75115746,77.089,77.068,12.97555405]
[1771917134274,0.75115746,77.089,77.068,0.68259495]
[1771917135154,0.75115746,77.089,77.062,0.68259495]
[1771917135362,0.75115746,77.089,77.064,0.68259495]
[1771917135680,0.75115746,77.087,77.064,0.68259495]
[1771917135851,0.75115746,77.087,77.056,0.68259495]
[1771917136359,0.75115746,77.069,77.048,0.68259495]
[1771917136668,0.75115746,77.069,77.048,13.66137106]
[1771917136967,0.75115746,77.069,77.048,0.68259495]
[1771917137274,0.75115746,77.069,77.044,12.97957876]
[1771917137752,0.75115746,77.069,77.036,0.68259495]
[1771917137753,0.75115746,77.059,77.036,0.68259495]
[1771917137955,0.75115746,77.059,77.031,12.98178655]
[1771917138764,0.75115746,77.059,77.032,0.73861176]
[1771917139071,0.75115746,77.059,77.033,12.9814495]
[1771917139274,0.75115746,77.059,77.034,0.73861176]
[1771917140775,0.74367526,77.057,77.028,0.73861176]
[1771917140977,0.74367526,77.055,77.031,0.73861176]
[1771917141156,0.74367526,77.055,77.029,12.98212361]
[1771917141360,251.48964971,77.484,77.051,0.73861176]
[1771917141361,6.7109936,77.118,77.051,0.73861176]
[1771917141677,5.17972234,77.12,77.071,0.73861176]
[1771917141678,0.74367526,77.099,77.071,0.73861176]
[1771917142057,0.74367526,77.099,77.061,0.73861176]
[1771917142459,0.74367526,77.089,77.061,0.73861176]
[1771917143181,0.74367526,77.089,77.07,5.92194926]
[1771917143562,0.74367526,77.089,77.071,0.74222692]
[1771917143759,0.74367526,77.089,77.062,45.41797513]
[1771917143760,0.1,77.1,77.081,0.74222692]
[1771917145200,0.1,77.1,77.083,0.74222692]
[1771917147264,32.41366164,77.128,77.074,32.43617054]
[1771917147265,0.69640448,77.13,77.091,0.74222692]
[1771917147471,0.69640448,77.13,77.101,0.74222692]
[1771917147679,0.69640448,77.129,77.101,0.74222692]
[1771917148889,5.17972234,77.12,77.101,0.74222692]
[1771917149274,0.69640448,77.129,77.103,0.74222692]
[1771917150384,0.69640448,77.129,77.105,0.74222692]
[1771917150772,0.69640448,77.129,77.104,12.96949574]
[1771917150773,0.69640448,77.129,77.104,13.71172266]
[1771917150979,0.69640448,77.129,77.105,0.74222692]
[1771917152489,0.69640448,77.129,77.106,12.96915933]
[1771917152987,0.69640448,77.129,77.107,0.74222692]
[1771917154192,5.17972234,77.13,77.107,0.74222692]
[1771917154391,5.27972234,77.14,77.109,0.74222692]
[1771917154691,0.1,77.14,77.121,0.74222692]
[1771917155396,0.1,77.16,77.108,45.39088031]
[1771917155397,0.1,77.16,77.131,0.74222692]
[1771917155577,12.95732801,77.177,77.141,0.74222692]
[1771917155777,5.97612682,77.18,77.141,0.74222692]
[1771917156077,5.97612682,77.18,77.151,0.74222692]
[1771917156277,0.1,77.18,77.151,0.74222692]
[1771917156477,0.1,77.18,77.132,5.36086188]
[1771917156478,0.1,77.18,77.161,0.74222692]
[1771917157394,0.1,77.18,77.152,45.36499377]
[1771917157395,0.69640448,77.179,77.152,12.96142679]
[1771917158678,0.69640448,77.178,77.141,12.96327504]
[1771917158883,0.69640448,77.169,77.141,12.96327504]
[1771917159378,0.69640448,77.169,77.142,0.74222692]
[1771917160081,5.17972234,77.15,77.12,5.17972234]
[1771917160898,0.69640448,77.148,77.121,12.96663684]
[1771917161274,0.69640448,77.148,77.121,45.38322894]
[1771917161480,0.69640448,77.148,77.121,12.96663684]
[1771917162874,0.69640448,77.139,77.117,12.96727175]
[1771917163492,12.96170221,77.151,77.117,13.70949867]
[1771917163674,5.17972234,77.14,77.117,13.70949867]
[1771917164298,5.17972234,77.14,77.118,0.74222692]
[1771917165709,5.17972234,77.14,77.12,0.74222692]
[1771917166304,0.69640448,77.139,77.119,12.96697311]
[1771917167798,0.69640448,77.139,77.115,0.74222692]
[1771917168586,0.63067072,77.149,77.115,0.74222692]
[1771917168804,5.17972234,77.15,77.121,0.63758614]
[1771917169387,0.63067072,77.159,77.121,0.63758614]
[1771917169787,0.63067072,77.159,77.123,0.63758614]
[1771917170313,0.63067072,77.159,77.131,0.63758614]
[1771917171489,0.63067072,77.159,77.133,0.63758614]
[1771917174289,5.17972234,77.16,77.135,0.63758614]
[1771917175192,0.63067072,77.159,77.135,0.63758614]
[1771917175802,5.17972234,77.17,77.137,0.63758614]
[1771917176000,0.63067072,77.179,77.141,0.63758614]
[1771917176701,5.17972234,77.17,77.141,0.63758614]
[1771917177086,0.63067072,77.179,77.141,0.63758614]
[1771917177929,0.63067072,77.179,77.142,45.37087448]
[1771917178203,0.63067072,77.179,77.143,0.63758614]
[1771917179507,0.63067072,77.179,77.151,0.63758614]
[1771917179915,13.58773102,77.178,77.151,0.63758614]
[1771917180506,0.63067072,77.178,77.153,0.63758614]
[1771917180817,5.17972234,77.17,77.153,0.63758614]
[1771917181010,0.63067072,77.179,77.153,0.63758614]
[1771917182523,0.63067072,77.179,77.121,5.36086188]
[1771917182524,0.63067072,77.159,77.134,0.63758614]
[1771917183303,0.63067072,77.149,77.123,32.41559443]
[1771917183502,5.17972234,77.14,77.123,33.05318057]
[1771917183739,0.63067072,77.149,77.124,0.63758614]
[1771917184522,0.63067072,77.139,77.12,12.96674141]
[1771917185222,0.63067072,77.139,77.12,13.60432755]
[1771917185398,0.63067072,77.146,77.121,0.63758614]
[1771917186218,58.42,77.272,77.12,12.96674141]
[1771917186219,103.9,77.266,77.14,5.17972234]
[1771917186397,5.17972234,77.21,77.171,0.63758614]
[1771917186598,5.17972234,77.23,77.191,0.63758614]
[1771917186805,5.17972234,77.28,77.172,149.01777846]
[1771917186806,5.17972234,77.25,77.211,0.63758614]
[1771917187008,5.17972234,77.24,77.211,0.53760008]
[1771917187318,0.63067072,77.229,77.19,5.17972234]
[1771917187814,0.63067072,77.229,77.2,5.17972234]
[1771917188620,0.63067072,77.238,77.201,12.95320008]
[1771917188822,0.1,77.24,77.22,5.17972234]
[1771917189036,0.1,77.24,77.223,0.63758614]
[1771917189327,0.1,77.26,77.241,0.63758614]
[1771917189623,51.72559618,77.332,77.24,11.50840877]
[1771917189624,0.63067072,77.279,77.242,0.63758614]
[1771917189820,0.63067072,77.279,77.24,11.50840877]
[1771917190026,12.13907949,77.25,77.211,0.28432314]
[1771917190208,12.13907949,77.25,77.22,11.50840877]
[1771917190721,12.13907949,77.25,77.213,0.28432314]
[1771917190904,0.63067072,77.25,77.213,0.28432314]
[1771917191217,0.63067072,77.249,77.221,0.28432314]
[1771917191424,0.63067072,77.258,77.23,11.50840877]
[1771917191611,12.13907949,77.27,77.24,11.50840877]
[1771917192110,0.63067072,77.279,77.25,11.50840877]
[1771917192313,77.49014535,77.43,77.251,0.63758614]
[1771917192314,0.63067072,77.289,77.251,0.63758614]
[1771917192522,0.63067072,77.279,77.243,0.63758614]
[1771917192915,0.63067072,77.279,77.244,13.58357547]
[1771917193104,0.63067072,77.279,77.25,11.50840877]
[1771917193422,0.63067072,77.287,77.26,12.14599491]
[1771917193627,0.63067072,77.287,77.26,0.63758614]
[1771917194029,0.63067072,77.287,77.25,11.50840877]
[1771917194211,11.50840877,77.27,77.244,12.94598933]
[1771917194527,0.63067072,77.279,77.244,12.94598933]
[1771917195408,0.63067072,77.277,77.245,0.63758614]
[1771917197011,0.63067072,77.277,77.244,12.94598933]
[1771917197012,0.2,77.279,77.261,0.63758614]
[1771917197511,0.2,77.279,77.262,12.94297325]
[1771917197811,0.63067072,77.278,77.25,11.50705655]
[1771917198006,0.63067072,77.278,77.243,12.94615693]
[1771917198212,0.57653557,77.271,77.243,12.94615693]
[1771917198413,0.2,77.259,77.243,12.94615693]
[1771917199133,0.2,77.259,77.244,0.63224708]
[1771917199312,0.57653557,77.271,77.245,12.94582173]
[1771917199518,0.57653557,77.271,77.25,11.50705655]
[1771917199721,0.2,77.279,77.25,11.50705655]
[1771917199922,12.94029348,77.278,77.25,11.50705655]
[1771917200230,12.94029348,77.278,77.25,12.13930363]
[1771917200841,0.2,77.279,77.251,0.63224708]
[1771917201215,12.94029348,77.278,77.245,12.94582173]
[1771917201420,0.57653557,77.277,77.245,0.63224708]
[1771917201623,13.51716396,77.276,77.245,0.63224708]
[1771917201920,0.57653557,77.275,77.245,0.63224708]
[1771917202124,0.2,77.279,77.227,0.63224708]
[1771917202125,0.57653557,77.259,77.227,0.63224708]
[1771917202316,11.50705655,77.25,77.221,12.94984524]
[1771917202511,11.50705655,77.25,77.221,13.55594266]
[1771917202828,0.57653557,77.251,77.222,0.60609742]
[1771917203618,0.57653557,77.251,77.221,45.32445836]
[1771917203619,0.57653557,77.251,77.223,12.94950986]
[1771917203924,0.57653557,77.251,77.223,45.92938193]
[1771917204325,0.57653557,77.251,77.224,0.60609742]
[1771917204513,0.2,77.249,77.224,0.60609742]
[1771917205425,0.2,77.239,77.226,0.60609742]
[1771917207036,0.2,77.249,77.226,0.60609742]
[1771917207217,0.80966318,77.249,77.226,0.60609742]
[1771917207419,0.80966318,77.249,77.227,12.94883913]
[1771917207635,0.60966318,77.256,77.231,0.60609742]
[1771917207831,0.2,77.259,77.235,0.60609742]
[1771917208026,0.2,77.259,77.241,0.60609742]
[1771917208337,1e-08,77.259,77.241,0.60609742]
[1771917210115,1e-08,77.259,77.24,11.50705655]
[1771917210116,1e-08,77.259,77.245,0.60609742]
[1771917210621,0.60966319,77.259,77.242,12.41457936]
[1771917211535,0.60966319,77.259,77.242,12.21457936]
[1771917211747,0.60966319,77.259,77.234,12.94766553]
[1771917211948,0.60966318,77.249,77.224,12.94934217]
[1771917212120,0.60966318,77.249,77.172,51.83221271]
[1771917212121,5.15615743,77.24,77.21,5.15615743]
[1771917212321,0.60966318,77.239,77.21,5.15615743]
[1771917212720,0.60966318,77.239,77.211,0.50079325]
[1771917213219,1e-08,77.259,77.233,0.60609742]
[1771917213440,1e-08,77.259,77.241,0.60609742]
[1771917215137,1e-08,77.259,77.242,12.94632453]
[1771917215338,1e-08,77.259,77.243,0.60609742]
[1771917216920,1e-08,77.259,77.25,11.50782218]
[1771917217236,0.60966318,77.273,77.25,12.1139196]
[1771917217428,0.60966318,77.273,77.251,0.60609742]
[1771917217630,0.2,77.279,77.251,0.60609742]
[1771917218222,0.2,77.279,77.26,11.50782218]
[1771917219054,0.2,77.279,77.259,12.94347584]
[1771917220132,0.60966318,77.297,77.271,0.60609742]
[1771917221135,0.60966318,77.297,77.272,12.94129827]
[1771917221523,0.60966318,77.297,77.272,13.54739569]
[1771917222349,0.60966318,77.297,77.274,12.94096332]
[1771917223555,0.60966318,77.297,77.28,24.44774918]
[1771917223754,0.60966318,77.297,77.28,12.939927]
[1771917223954,0.60966318,77.297,77.276,12.94054892]
[1771917224835,12.93615998,77.303,77.277,0.60609742]
[1771917225156,0.60966318,77.302,77.282,0.2]
[1771917226155,0.60966318,77.302,77.292,0.2]
[1771917231454,12.93644325,77.301,77.292,0.2]
[1771917231658,0.55305846,77.3,77.292,0.2]
[1771917232538,0.55305846,77.288,77.221,0.57146355]
[1771917232736,12.06088064,77.24,77.213,0.57146355]
[1771917232942,11.50782218,77.24,77.213,0.57146355]
[1771917233143,0.55305846,77.239,77.213,0.57146355]
[1771917234671,11.50782218,77.25,77.215,0.57146355]
[1771917234843,12.94515139,77.249,77.215,0.57146355]
[1771917235040,11.50782218,77.24,77.215,0.57146355]
[1771917236649,11.50782218,77.24,77.217,0.57146355]
[1771917237567,0.33485329,77.239,77.216,12.95068379]
[1771917237968,11.50782218,77.24,77.217,0.57146355]
[1771917238752,11.50782218,77.24,77.218,12.95034836]
[1771917239466,11.85069632,77.24,77.217,0.57146355]
[1771917239668,0.3468156,77.239,77.214,12.95097508]
[1771917240574,12.94682737,77.239,77.21,13.5230656]
[1771917240755,11.8611625,77.23,77.206,12.9522744]
[1771917240948,11.8611625,77.23,77.206,13.52373795]
[1771917241874,0.35979011,77.229,77.199,0.57146355]
[1771917242758,0.36616581,77.227,77.199,13.52483673]
[1771917242971,0.36616581,77.227,77.199,12.95337318]
[1771917243282,0.36616581,77.227,77.2,0.57146355]
[1771917244345,11.50782218,77.22,77.2,0.57146355]
[1771917246469,0.38485688,77.209,77.182,0.57146355]
[1771917248461,11.50782218,77.24,77.201,0.57146355]
[1771917248664,12.06088064,77.24,77.21,11.50782218]
[1771917248964,0.55305846,77.239,77.2,11.50782218]
[1771917249170,11.50782218,77.23,77.2,11.50782218]
[1771917249548,11.50782218,77.23,77.201,12.95320008]
[1771917249967,11.50782218,77.23,77.201,45.3362003]
[1771917250269,0.55305846,77.233,77.201,45.3362003]
[1771917250565,0.55305846,77.233,77.202,0.57146355]
[1771917251264,0.55305846,77.219,77.189,0.57146355]
[1771917251564,45.31800289,77.232,77.191,0.57146355]
[1771917251565,0.55305846,77.227,77.191,0.57146355]
[1771917252361,0.55305846,77.227,77.193,0.57146355]
[1771917253075,0.55305846,77.227,77.201,0.57146355]
[1771917255252,0.55305846,77.227,77.202,13.52449585]
[1771917256866,0.55305846,77.227,77.204,12.95269675]
[1771917257069,0.55305846,77.227,77.205,0.57146355]
[1771917260366,0.75305846,77.227,77.207,0.61221716]
[1771917260563,0.2,77.227,77.211,0.61221716]
[1771917261865,0.60247594,77.249,77.213,0.61221716]
[1771917262072,0.60247594,77.249,77.213,0.41221716]
[1771917262478,0.60247594,77.248,77.213,0.41221716]
[1771917263402,45.30802987,77.249,77.186,45.34501074]
[1771917263687,0.62890068,77.246,77.21,5.16121673]
[1771917263862,0.62890068,77.246,77.211,45.33032857]
[1771917264067,0.62890068,77.246,77.212,0.6425066]
[1771917264782,0.62890068,77.246,77.221,0.6425066]
[1771917264958,0.62890068,77.254,77.231,0.6425066]
[1771917265362,0.62890068,77.26,77.231,0.6425066]
[1771917265983,13.57237652,77.259,77.233,0.6425066]
[1771917266490,13.57237652,77.259,77.232,12.94800082]
[1771917267185,0.2,77.248,77.229,0.6425066]
[1771917267972,0.2,77.238,77.229,0.6425066]
[1771917268185,0.2,77.248,77.229,0.6425066]
[1771917268885,0.2,77.248,77.229,0.4425066]
[1771917271196,0.2,77.248,77.23,12.94833613]
[1771917272689,0.62890068,77.247,77.23,12.94833613]
[1771917277096,0.62890068,77.247,77.224,0.6425066]
[1771917277480,0.62890068,77.245,77.217,0.6425066]
[1771917278390,0.62890068,77.245,77.211,0.6425066]
[1771917278709,12.94565414,77.246,77.21,12.95169019]
[1771917278710,0.62890068,77.239,77.21,12.95169019]
[1771917279575,0.62890068,77.229,77.198,0.6425066]
[1771917279777,0.62890068,77.229,77.2,5.16121673]
[1771917280195,0.62890068,77.229,77.2,5.80372333]
[1771917280398,0.62890068,77.229,77.201,0.6425066]
[1771917281173,12.94867146,77.228,77.201,13.5955775]
[1771917281498,0.62890068,77.227,77.201,13.5955775]
[1771917282188,0.62890068,77.227,77.201,12.9530709]
[1771917283879,0.62890068,77.225,77.201,13.5955775]
[1771917284602,0.62890068,77.236,77.202,0.6425066]
[1771917284791,51.74905888,77.297,77.201,12.9530709]
[1771917284792,0.62890068,77.247,77.23,5.16121673]
[1771917285597,0.62890068,77.247,77.23,0.6425066]
[1771917285982,0.62890068,77.247,77.231,12.94816848]
[1771917286405,5.16121673,77.26,77.224,0.6425066]
[1771917286406,0.62890068,77.245,77.224,0.6425066]
[1771917286781,0.62890068,77.245,77.224,13.59170568]
[1771917287901,0.62890068,77.245,77.225,0.6425066]
[1771917290408,0.73238495,77.252,77.231,0.71850931]
[1771917291306,0.73238495,77.252,77.232,12.94800082]
[1771917292085,0.73238495,77.249,77.22,0.71850931]
[1771917292386,0.73238495,77.249,77.221,0.71850931]
[1771917293504,12.94531897,77.248,77.221,0.71850931]
[1771917293683,0.73238495,77.247,77.222,12.94967755]
[1771917294810,0.73238495,77.247,77.217,12.95045662]
[1771917294991,0.73238495,77.247,77.217,13.66896593]
[1771917295686,0.73238495,77.247,77.218,0.71850931]
[1771917297489,0.73238495,77.247,77.221,0.71850931]
[1771917297889,0.73238495,77.247,77.222,12.94967755]
[1771917298091,0.73238495,77.247,77.223,0.71850931]
[1771917299607,12.94565414,77.246,77.223,0.71850931]
[1771917299905,0.73238495,77.245,77.223,0.71850931]
[1771917300209,0.73238495,77.245,77.224,12.94934217]
[1771917300606,0.73238495,77.243,77.21,5.87972604]
[1771917300809,0.73238495,77.219,77.193,12.95445321]
[1771917301008,12.94598933,77.244,77.193,12.95445321]
[1771917301009,0.73238495,77.239,77.194,0.71850931]
[1771917301190,0.73238495,77.239,77.211,0.71850931]
[1771917301805,5.89360168,77.25,77.22,5.16121673]
[1771917302009,13.67744614,77.25,77.223,0.71850931]
[1771917302200,0.73238495,77.249,77.223,0.71850931]
[1771917302796,13.67753634,77.249,77.223,0.71850931]
[1771917303001,0.73238495,77.248,77.222,12.94967755]
[1771917304725,0.73238495,77.239,77.203,0.71850931]
[1771917304894,0.73238495,77.229,77.203,13.67137383]
[1771917305092,0.73238495,77.229,77.203,12.95286452]
[1771917305312,0.73238495,77.229,77.165,57.19733553]
[1771917305313,0.73238495,77.219,77.194,12.95435114]
[1771917305516,0.73238495,77.219,77.185,0.71850931]
[1771917305700,0.73238495,77.219,77.191,0.71850931]